bitfinex/quotes_BTCUSD_20220307
["timestamp","ask_amount","ask_price","bid_price","bid_amount"]
[1646611200618,0.17828521,38438.0,38437.0,0.00390427]
[1646611200818,0.17828521,38438.0,38436.0,0.16162451]
[1646611201445,0.17328521,38438.0,38436.0,0.16162451]
[1646611202217,0.17328521,38438.0,38437.0,0.00111919]
[1646611203226,0.17328521,38438.0,38431.0,0.1]
[1646611203227,0.17328521,38438.0,38428.0,0.02584]
[1646611203228,0.95,38437.0,38428.0,0.02584]
[1646611203419,0.697348,38436.0,38428.0,0.02584]
[1646611203669,0.82796173,38436.0,38429.0,0.7878]
[1646611203873,0.247348,38436.0,38429.0,0.7878]
[1646611204668,0.247348,38436.0,38432.0,0.20878448]
[1646611204868,0.247348,38436.0,38429.0,0.7878]
[1646611204869,0.3,38435.0,38429.0,0.7878]
[1646611205274,0.0521,38434.0,38429.0,0.7878]
[1646611205471,0.0521,38434.0,38429.0,0.397315]
[1646611205669,0.3,38433.0,38429.0,0.397315]
[1646611205872,0.11718,38432.0,38428.0,0.02884]
[1646611206069,0.11718,38432.0,38429.0,0.7878]
[1646611207520,0.11718,38432.0,38430.0,0.22990715]
[1646611207715,0.11718,38432.0,38430.0,1.01770715]
[1646611207716,0.06508,38432.0,38430.0,1.01770715]
[1646611208317,0.130161,38433.0,38432.0,0.13015999]
[1646611208522,0.130161,38433.0,38432.0,0.43015999]
[1646611208717,0.130161,38433.0,38432.0,0.23015999]
[1646611209019,0.130161,38433.0,38432.0,0.13015999]
[1646611209218,0.130161,38433.0,38432.0,0.43416931]
[1646611209219,0.430161,38433.0,38432.0,0.43416931]
[1646611209417,0.482261,38433.0,38432.0,0.04368631]
[1646611209816,0.3521,38433.0,38432.0,0.04368631]
[1646611210028,0.06581292,38433.0,38432.0,0.04368631]
[1646611210217,0.26371292,38433.0,38432.0,0.04368631]
[1646611210417,0.26371292,38433.0,38424.0,0.3]
[1646611210418,0.9,38432.0,38422.0,0.1811]
[1646611210620,0.9,38432.0,38412.0,1.02449341]
[1646611210621,0.130178,38430.0,38412.0,0.21191473]
[1646611210816,0.130178,38430.0,38416.0,0.20855799]
[1646611210817,0.35,38429.0,38416.0,0.20855799]
[1646611211078,0.065092,38426.0,38418.0,0.10469706]
[1646611211477,0.065092,38426.0,38418.0,0.44293582]
[1646611211674,0.195281,38426.0,38419.0,0.3]
[1646611211877,0.195275,38430.0,38427.0,0.05966841]
[1646611212078,0.065094,38428.0,38418.0,0.1684429]
[1646611212275,0.065094,38428.0,38422.0,0.22811701]
[1646611212475,0.065094,38428.0,38419.0,0.10469706]
[1646611212676,0.065094,38428.0,38415.0,0.10469706]
[1646611212877,0.065094,38428.0,38416.0,0.3]
[1646611213075,0.115094,38428.0,38416.0,0.36433065]
[1646611213278,0.115094,38428.0,38416.0,0.97800277]
[1646611213475,0.23594994,38425.0,38415.0,0.10469706]
[1646611213877,0.065101,38422.0,38415.0,0.10469706]
[1646611214074,0.130201,38421.0,38415.0,0.10469706]
[1646611214279,0.05,38420.0,38415.0,0.10469706]
[1646611214475,0.05,38420.0,38415.0,0.20469706]
[1646611214922,0.35,38420.0,38412.0,0.005]
[1646611215125,0.0651,38419.0,38412.0,0.005]
[1646611215328,0.3,38418.0,38412.0,0.005]
[1646611215524,0.3,38418.0,38405.0,0.19823078]
[1646611215525,0.130255,38414.0,38405.0,0.19823078]
[1646611215722,0.130255,38414.0,38400.0,0.10769706]
[1646611215723,0.130255,38414.0,38403.0,0.19823078]
[1646611215924,0.130255,38414.0,38400.0,0.20123078]
[1646611215925,0.22572341,38409.0,38400.0,0.20123078]
[1646611216128,0.22572341,38409.0,38400.0,0.003]
[1646611216129,0.517944,38408.0,38400.0,0.003]
[1646611216329,0.1021,38407.0,38400.0,0.003]
[1646611216525,0.75,38405.0,38397.0,0.001]
[1646611216725,0.0521,38404.0,38397.0,0.001]
[1646611216925,0.24752,38403.0,38397.0,0.001]
[1646611217323,0.3,38402.0,38397.0,0.001]
[1646611217725,0.3,38402.0,38393.0,0.002]
[1646611217726,1.0,38401.0,38393.0,0.002]
[1646611217925,0.365144,38400.0,38393.0,0.002]
[1646611218125,0.065144,38400.0,38393.0,0.002]
[1646611218572,0.365144,38400.0,38393.0,0.002]
[1646611219270,0.365144,38400.0,38390.0,0.36321529]
[1646611219470,0.05,38398.0,38390.0,0.25851823]
[1646611219681,0.365144,38400.0,38390.0,0.25851823]
[1646611219970,0.415144,38400.0,38390.0,0.25651823]
[1646611220172,0.415144,38400.0,38390.0,0.36121529]
[1646611220371,0.415144,38400.0,38390.0,1.04431823]
[1646611220372,0.19544,38398.0,38390.0,1.04431823]
[1646611220672,0.19544,38398.0,38394.0,2.65682565]
[1646611220673,0.05,38397.0,38394.0,2.65682565]
[1646611220870,0.05,38397.0,38395.0,0.1909012]
[1646611221270,0.05,38397.0,38395.0,0.39001241]
[1646611221475,0.05,38397.0,38396.0,0.27265242]
[1646611222071,0.05,38397.0,38394.0,1.76432859]
[1646611222325,0.115135,38397.0,38394.0,0.386958]
[1646611222926,0.115135,38397.0,38395.0,0.386958]
[1646611223128,0.115135,38397.0,38394.0,0.386958]
[1646611223326,0.115135,38397.0,38393.0,0.10469706]
[1646611223525,0.115135,38397.0,38393.0,0.20469706]
[1646611223730,0.115135,38397.0,38394.0,0.386958]
[1646611224634,0.115135,38397.0,38393.0,0.20469706]
[1646611224831,0.115135,38397.0,38394.0,0.386958]
[1646611225029,0.115135,38397.0,38393.0,0.20469706]
[1646611225430,0.115135,38397.0,38394.0,0.386958]
[1646611225632,0.115135,38397.0,38396.0,0.7878]
[1646611225633,0.065135,38397.0,38396.0,0.7878]
[1646611225833,0.065135,38397.0,38396.0,1.574758]
[1646611226073,0.065144,38400.0,38399.0,0.386958]
[1646611226274,0.065144,38400.0,38399.0,0.786958]
[1646611226475,0.065144,38400.0,38399.0,0.486958]
[1646611226778,4.4e-05,38400.0,38399.0,1.574758]
[1646611227077,1.15287079,38414.0,38399.0,1.574758]
[1646611227078,0.491,38416.0,38401.0,0.81364]
[1646611227276,0.491,38416.0,38399.0,0.65332706]
[1646611227277,0.273505,38418.0,38403.0,0.81364]
[1646611227475,0.273505,38418.0,38405.0,0.7878]
[1646611227675,0.130155,38411.0,38407.0,0.7878]
[1646611227876,0.130155,38411.0,38408.0,1.174758]
[1646611228075,0.130155,38411.0,38408.0,0.46826765]
[1646611228575,0.130155,38411.0,38408.0,0.29221226]
[1646611228974,0.130155,38411.0,38409.0,0.386958]
[1646611229174,0.130155,38411.0,38408.0,1.08001226]
[1646611229379,0.065107,38413.0,38409.0,1.57945506]
[1646611229578,0.065107,38413.0,38412.0,0.89249706]
[1646611229819,0.065107,38413.0,38412.0,1.67945506]
[1646611230226,0.22980711,38414.0,38413.0,1.174758]
[1646611230421,0.22980711,38414.0,38413.0,1.38528427]
[1646611230623,0.22980711,38414.0,38413.0,1.48528427]
[1646611231924,0.130182,38419.0,38413.0,1.48528427]
[1646611232123,0.130179,38423.0,38413.0,1.48528427]
[1646611232124,0.35911956,38423.0,38418.0,1.200598]
[1646611232429,0.415,38429.0,38423.0,0.02584]
[1646611232622,0.44847871,38433.0,38429.0,0.72274]
[1646611232823,0.51354471,38433.0,38431.0,0.10469706]
[1646611233025,0.26357,38436.0,38435.0,0.387082]
[1646611233222,0.26357,38436.0,38432.0,0.46000551]
[1646611233422,0.26357,38436.0,38433.0,0.59177906]
[1646611233669,0.133437,38436.0,38433.0,0.20469706]
[1646611233868,0.133437,38436.0,38435.0,0.387082]
[1646611234072,0.065059,38438.0,38437.0,0.7878]
[1646611234270,0.065059,38438.0,38437.0,1.236582]
[1646611234672,0.0022,38439.0,38438.0,1.27957906]
[1646611235069,0.0022,38439.0,38438.0,1.37957906]
[1646611235269,0.0022,38440.0,38439.0,1.81364]
[1646611235270,0.0011,38440.0,38439.0,1.81364]
[1646611235469,0.0011,38448.0,38440.0,0.387082]
[1646611235673,0.0011,38448.0,38447.0,1.174882]
[1646611235870,0.0011,38448.0,38447.0,1.255282]
[1646611236070,0.0011,38452.0,38447.0,1.381122]
[1646611236273,0.0011,38452.0,38449.0,0.7878]
[1646611236470,0.0011,38452.0,38451.0,0.7878]
[1646611236671,0.0011,38452.0,38451.0,1.27957906]
[1646611236871,0.0011,38452.0,38451.0,1.37957906]
[1646611237323,0.0001,38453.0,38452.0,1.387082]
[1646611237526,0.0011,38454.0,38452.0,2.174882]
[1646611237722,0.0011,38454.0,38453.0,1.574882]
[1646611238324,0.0022,38458.0,38457.0,0.96953352]
[1646611238526,0.0022,38458.0,38457.0,1.66489501]
[1646611238725,0.0022,38458.0,38457.0,1.76489501]
[1646611239526,0.0022,38458.0,38457.0,1.352422]
[1646611240228,0.0033,38461.0,38460.0,1.174882]
[1646611240529,0.0033,38461.0,38460.0,1.474882]
[1646611240727,0.0033,38461.0,38460.0,1.274882]
[1646611241190,0.0022,38461.0,38460.0,1.274882]
[1646611241385,0.0022,38461.0,38460.0,1.326982]
[1646611241884,0.0022,38461.0,38460.0,1.339972]
[1646611242685,0.0022,38461.0,38460.0,1.53799764]
[1646611243486,0.0022,38461.0,38460.0,1.56383764]
[1646611243690,0.0022,38461.0,38460.0,1.53799764]
[1646611244821,0.0022,38461.0,38460.0,1.326982]
[1646611245019,0.0022,38461.0,38460.0,1.5250012]
[1646611245222,0.0022,38461.0,38460.0,1.0379192]
[1646611245422,0.117483,38461.0,38460.0,0.0519947]
[1646611245819,0.0522,38461.0,38460.0,0.0519947]
[1646611246119,0.0522,38461.0,38460.0,0.21473509]
[1646611246318,0.0022,38461.0,38460.0,0.16274039]
[1646611246722,0.00121992,38462.0,38461.0,1.0]
[1646611246921,0.00121992,38462.0,38461.0,1.687082]
[1646611247121,0.0011,38462.0,38461.0,0.29804426]
[1646611247322,0.0011,38462.0,38461.0,1.47292626]
[1646611247519,0.0011,38462.0,38461.0,0.8878]
[1646611247720,0.0011,38462.0,38461.0,1.08584426]
[1646611247921,0.0011,38462.0,38461.0,1.274882]
[1646611248223,0.0011,38462.0,38461.0,1.08584426]
[1646611248879,0.0011,38462.0,38461.0,1.38584426]
[1646611249077,0.0011,38462.0,38461.0,1.08584426]
[1646611249280,0.0011,38464.0,38463.0,0.7878]
[1646611249584,0.0044,38472.0,38467.0,0.7878]
[1646611249777,0.0044,38472.0,38470.0,1.174882]
[1646611249979,0.0044,38472.0,38470.0,1.67292626]
[1646611250178,0.0044,38472.0,38470.0,1.47292626]
[1646611251781,0.0044,38472.0,38470.0,1.65801528]
[1646611251979,0.0044,38472.0,38470.0,1.47292626]
[1646611253515,0.0045201,38472.0,38470.0,1.274882]
[1646611253814,0.0045201,38472.0,38470.0,1.47285328]
[1646611254315,0.0044,38472.0,38470.0,1.47285328]
[1646611254715,0.0045201,38472.0,38470.0,1.47285328]
[1646611255120,0.0045201,38472.0,38470.0,1.47383619]
[1646611255319,0.0045201,38472.0,38470.0,1.47392619]
[1646611255516,0.0044,38472.0,38470.0,1.47392619]
[1646611255716,0.0045201,38472.0,38470.0,1.47392619]
[1646611256572,0.0045201,38472.0,38470.0,1.47383619]
[1646611256772,0.0044,38472.0,38470.0,1.47383619]
[1646611256971,0.0045201,38472.0,38470.0,1.47383619]
[1646611257871,0.0044,38472.0,38470.0,1.47383619]
[1646611258271,0.0045201,38472.0,38470.0,1.47383619]
[1646611259171,0.0045201,38472.0,38470.0,0.19895419]
[1646611259172,0.0044,38472.0,38470.0,0.19895419]
[1646611259384,0.54545421,38471.0,38470.0,0.19895419]
[1646611259574,0.7,38469.0,38462.0,0.00998]
[1646611259824,0.15,38463.0,38462.0,0.00998]
[1646611260024,0.315283,38463.0,38455.0,0.00242742]
[1646611260228,0.115283,38462.0,38457.0,0.19644989]
[1646611260624,0.2,38463.0,38457.0,0.19644989]
[1646611260825,0.2,38463.0,38457.0,0.30114695]
[1646611261526,0.115283,38462.0,38457.0,0.30114695]
[1646611261725,0.2,38463.0,38457.0,0.30114695]
[1646611261926,0.2,38463.0,38461.0,0.7611267]
[1646611262528,0.05,38463.0,38461.0,0.7611267]
[1646611262734,0.05,38463.0,38462.0,0.487082]
[1646611262929,0.065033,38467.0,38462.0,0.487082]
[1646611263127,0.065033,38467.0,38462.0,0.1]
[1646611263128,0.2,38466.0,38462.0,0.1]
[1646611263327,0.2,38466.0,38463.0,0.387082]
[1646611263328,0.05,38466.0,38463.0,0.387082]
[1646611263569,0.05,38466.0,38465.0,0.15794564]
[1646611263966,0.05,38466.0,38465.0,0.33007235]
[1646611264173,0.065007,38469.0,38466.0,0.387082]
[1646611264369,0.065007,38469.0,38468.0,0.387082]
[1646611265270,0.065007,38469.0,38467.0,0.1]
[1646611265470,0.115007,38469.0,38466.0,0.1]
[1646611265670,0.115007,38469.0,38464.0,0.005]
[1646611265870,0.115007,38469.0,38465.0,0.49177906]
[1646611266072,0.065007,38469.0,38466.0,0.1]
[1646611266272,0.19296657,38479.0,38466.0,0.1]
[1646611266472,0.014076,38476.0,38468.0,0.16456281]
[1646611266674,0.0001201,38471.0,38468.0,0.16456281]
[1646611266871,0.1301381,38471.0,38468.0,0.16456281]
[1646611267072,0.065007,38470.0,38468.0,0.1]
[1646611267324,0.115007,38470.0,38466.0,0.1]
[1646611267529,0.115007,38470.0,38467.0,0.386635]
[1646611267727,0.115007,38470.0,38468.0,0.1]
[1646611268123,0.065007,38470.0,38468.0,0.1]
[1646611268324,0.05,38469.0,38468.0,0.486635]
[1646611268525,0.5661,38481.0,38468.0,0.1]
[1646611268724,0.0112309,38476.0,38468.0,0.1]
[1646611268925,0.0112309,38476.0,38466.0,0.1]
[1646611269126,0.0001201,38473.0,38466.0,0.1]
[1646611269326,0.260034,38472.0,38466.0,0.8878]
[1646611269526,0.260034,38472.0,38466.0,0.88882643]
[1646611269724,0.130017,38472.0,38470.0,0.7878]
[1646611269925,0.02511043,38471.0,38466.0,1.18882643]
[1646611270125,0.02511043,38471.0,38470.0,0.486635]
[1646611270325,0.02511043,38471.0,38470.0,0.1]
[1646611270724,0.02511043,38471.0,38470.0,0.36120147]
[1646611271396,0.02511043,38471.0,38469.0,0.1]
[1646611271588,0.02511043,38471.0,38470.0,0.386635]
[1646611271887,0.02511043,38471.0,38470.0,0.486635]
[1646611273093,0.02511043,38471.0,38470.0,1.274435]
[1646611273487,0.02511043,38471.0,38470.0,0.486635]
[1646611274090,0.02511043,38471.0,38470.0,0.48765728]
[1646611274491,0.41174543,38471.0,38470.0,0.00102228]
[1646611274835,0.57368416,38471.0,38470.0,0.00102228]
[1646611275033,0.57368416,38471.0,38465.0,0.005]
[1646611275034,0.130047,38469.0,38465.0,0.005]
[1646611275234,0.014076,38466.0,38465.0,0.005]
[1646611275639,0.065023,38465.0,38461.0,0.3759567]
[1646611275834,0.115023,38465.0,38461.0,0.3759567]
[1646611276735,0.01114732,38463.0,38461.0,0.3759567]
[1646611276934,0.05,38464.0,38461.0,0.3759567]
[1646611277134,0.014076,38463.0,38461.0,0.3759567]
[1646611277342,0.0154509,38462.0,38461.0,0.3759567]
[1646611277535,0.1455079,38462.0,38455.0,0.00642742]
[1646611277938,0.05,38461.0,38455.0,0.00642742]
[1646611278142,0.014076,38459.0,38455.0,0.00642742]
[1646611278338,0.14,38456.0,38455.0,0.00242742]
[1646611278586,0.14,38456.0,38446.0,0.05]
[1646611278587,0.55,38455.0,38446.0,0.05]
[1646611278778,0.06504,38454.0,38446.0,0.05]
[1646611278977,0.13008,38453.0,38447.0,0.7878]
[1646611279178,0.13008,38453.0,38445.0,0.83447142]
[1646611279382,0.05,38452.0,38446.0,0.386635]
[1646611279583,0.05,38452.0,38446.0,1.474435]
[1646611279782,0.13008,38453.0,38452.0,0.1]
[1646611279985,0.20219627,38463.0,38452.0,0.1]
[1646611279986,0.065027,38456.0,38453.0,1.174435]
[1646611280183,0.02511043,38460.0,38457.0,0.7878]
[1646611280378,0.02511043,38460.0,38458.0,1.174435]
[1646611280579,0.02511043,38460.0,38457.0,0.1]
[1646611280784,0.02511043,38460.0,38458.0,0.386635]
[1646611280981,0.02511043,38460.0,38457.0,0.8878]
[1646611281182,0.02511043,38460.0,38458.0,0.386635]
[1646611281380,0.02511043,38460.0,38457.0,0.1]
[1646611283722,0.02511043,38460.0,38457.0,0.21070593]
[1646611283922,0.01311571,38459.0,38457.0,0.21070593]
[1646611284124,0.01311571,38459.0,38458.0,0.386635]
[1646611284324,0.01311571,38459.0,38458.0,0.1]
[1646611284724,0.11527305,38461.0,38458.0,0.1]
[1646611284921,0.02511043,38459.0,38458.0,0.1]
[1646611285121,0.07511043,38459.0,38458.0,0.1]
[1646611285337,0.46174543,38459.0,38454.0,0.004]
[1646611285526,0.014076,38456.0,38454.0,0.21470593]
[1646611285723,0.079125,38456.0,38454.0,0.004]
[1646611285927,0.079125,38456.0,38449.0,0.21070593]
[1646611286177,0.079125,38456.0,38448.0,0.21070593]
[1646611286178,0.386635,38454.0,38448.0,0.21070593]
[1646611286377,0.16561041,38452.0,38448.0,0.21070593]
[1646611286576,0.16561041,38452.0,38445.0,0.26338241]
[1646611286577,0.144182,38451.0,38445.0,0.26338241]
[1646611286777,0.144182,38451.0,38443.0,0.26338241]
[1646611286778,0.14390129,38451.0,38443.0,0.26338241]
[1646611286977,0.14390129,38451.0,38442.0,0.003]
[1646611287376,0.065061,38450.0,38442.0,0.003]
[1646611287579,0.065052,38448.0,38444.0,0.16507995]
[1646611288376,0.065052,38448.0,38442.0,0.22068633]
[1646611288583,0.01519382,38447.0,38442.0,0.22068633]
[1646611288780,0.06519382,38447.0,38441.0,0.21692719]
[1646611288977,0.14147515,38446.0,38441.0,0.21692719]
[1646611289176,0.05,38445.0,38441.0,0.21692719]
[1646611289379,0.05,38445.0,38442.0,0.386635]
[1646611289930,0.05,38445.0,38441.0,0.21692719]
[1646611290128,0.05,38445.0,38442.0,0.386635]
[1646611290326,0.05,38445.0,38441.0,0.21692719]
[1646611290530,0.05,38445.0,38442.0,0.386635]
[1646611290727,0.05,38445.0,38440.0,0.09517848]
[1646611291328,0.02511043,38444.0,38440.0,0.09517848]
[1646611291530,0.15522643,38444.0,38440.0,0.09517848]
[1646611292128,0.09016443,38444.0,38441.0,0.386635]
[1646611292330,0.09016443,38444.0,38443.0,0.55213022]
[1646611292528,0.09016443,38444.0,38443.0,0.95329522]
[1646611292529,0.02511043,38444.0,38443.0,0.95329522]
[1646611292728,0.02511043,38444.0,38443.0,0.46549522]
[1646611292927,0.02511043,38444.0,38443.0,0.85213022]
[1646611293127,0.02511043,38444.0,38443.0,1.63993022]
[1646611293570,0.02511043,38444.0,38443.0,1.89216216]
[1646611293873,0.02511043,38444.0,38443.0,1.59216216]
[1646611294470,0.02511043,38449.0,38447.0,0.17547081]
[1646611294670,0.02511043,38449.0,38448.0,0.386635]
[1646611295373,0.02511043,38449.0,38448.0,1.174435]
[1646611295572,0.02511043,38449.0,38448.0,0.386635]
[1646611295975,0.02511043,38449.0,38448.0,1.174435]
[1646611296175,0.02511043,38449.0,38448.0,0.386635]
[1646611296776,0.02511043,38449.0,38448.0,0.686635]
[1646611296977,0.02511043,38449.0,38448.0,1.474435]
[1646611297423,0.02511043,38449.0,38448.0,0.386635]
[1646611297624,0.04878091,38452.0,38448.0,0.386635]
[1646611297625,0.02511043,38451.0,38448.0,0.386635]
[1646611297820,0.02511043,38451.0,38449.0,0.20825541]
[1646611298021,0.02511043,38451.0,38450.0,0.386635]
[1646611298422,0.00670273,38457.0,38451.0,0.8]
[1646611298622,0.05,38452.0,38451.0,0.8]
[1646611298821,0.00670273,38457.0,38449.0,0.46129892]
[1646611299030,0.00670273,38457.0,38450.0,0.386635]
[1646611299223,0.065031,38456.0,38449.0,0.46129892]
[1646611299423,0.130062,38456.0,38449.0,0.46129892]
[1646611299622,0.130062,38456.0,38450.0,0.386635]
[1646611300021,0.180062,38456.0,38450.0,0.386635]
[1646611300722,0.180062,38456.0,38450.0,0.3]
[1646611301472,0.180062,38456.0,38453.0,0.40514602]
[1646611301675,0.180062,38456.0,38454.0,0.686635]
[1646611301878,0.180062,38456.0,38454.0,0.386635]
[1646611302078,0.180062,38456.0,38454.0,0.686635]
[1646611302477,0.180062,38456.0,38454.0,0.386635]
[1646611302774,0.180062,38456.0,38454.0,1.174435]
[1646611303773,0.05,38456.0,38455.0,0.9982279]
[1646611303974,0.00670273,38457.0,38455.0,1.3848629]
[1646611304280,0.00670273,38457.0,38456.0,0.60231366]
[1646611305235,0.00695578,38457.0,38456.0,0.386635]
[1646611305435,0.00695578,38457.0,38456.0,0.38649222]
[1646611305640,0.01362157,38456.0,38452.0,0.00106175]
[1646611305839,0.38672,38455.0,38452.0,0.00106175]
[1646611306038,0.01362157,38456.0,38452.0,0.00106175]
[1646611306239,0.07724496,38455.0,38452.0,0.00106175]
[1646611306436,0.01712157,38454.0,38452.0,0.00106175]
[1646611306840,0.08215657,38454.0,38453.0,0.38672]
[1646611307044,0.08215657,38454.0,38452.0,0.00106175]
[1646611307237,0.05,38453.0,38452.0,0.57851128]
[1646611308037,0.05,38453.0,38452.0,0.38778175]
[1646611308438,0.05,38453.0,38452.0,0.00106175]
[1646611308673,0.05707028,38453.0,38452.0,0.00106175]
[1646611308873,0.05707028,38453.0,38452.0,0.38778175]
[1646611309274,0.05732333,38453.0,38452.0,1.47558175]
[1646611309477,0.0894799,38454.0,38453.0,1.50136665]
[1646611309478,0.0244449,38454.0,38453.0,1.50136665]
[1646611310077,0.0244449,38454.0,38453.0,0.50136665]
[1646611310277,0.02469795,38454.0,38453.0,0.50136665]
[1646611312726,0.02469795,38454.0,38453.0,1.58916665]
[1646611312929,0.02469795,38454.0,38453.0,1.64126665]
[1646611313130,0.00757638,38454.0,38453.0,1.64126665]
[1646611313327,0.00757638,38454.0,38453.0,0.55346665]
[1646611314227,0.00757638,38454.0,38453.0,0.55452723]
[1646611314426,0.00757638,38454.0,38453.0,0.85452723]
[1646611314928,0.00757638,38454.0,38453.0,0.76638322]
[1646611315129,0.00757638,38454.0,38453.0,1.06638322]
[1646611315326,0.00757638,38454.0,38453.0,1.85418322]
[1646611315728,6.1e-06,38457.0,38455.0,0.81364]
[1646611315931,6.1e-06,38457.0,38454.0,0.76342828]
[1646611315932,6.1e-06,38457.0,38456.0,1.81584241]
[1646611316193,6.1e-06,38457.0,38456.0,1.55246]
[1646611316393,6.1e-06,38457.0,38456.0,1.70246]
[1646611316589,6.1e-06,38457.0,38456.0,1.98250647]
[1646611316788,6.1e-06,38457.0,38456.0,2.05838174]
[1646611316989,6.1e-06,38457.0,38456.0,1.68338574]
[1646611317992,6.1e-06,38457.0,38456.0,1.87804016]
[1646611318191,6.1e-06,38457.0,38456.0,2.19583339]
[1646611318493,0.00012006,38473.0,38458.0,1.8137]
[1646611318696,0.00012006,38473.0,38465.0,0.7878]
[1646611318892,0.00012006,38473.0,38469.0,0.7878]
[1646611319092,0.00012006,38473.0,38472.0,1.17452]
[1646611319291,0.4925261,38481.0,38472.0,1.27452]
[1646611319292,0.423344,38480.0,38472.0,1.27452]
[1646611319495,0.0001201,38473.0,38472.0,0.1]
[1646611319699,0.0001201,38473.0,38472.0,0.48672]
[1646611320528,0.473344,38480.0,38472.0,0.1]
[1646611320732,0.0001201,38474.0,38473.0,0.38672]
[1646611321733,0.5122305,38480.0,38472.0,0.1]
[1646611321931,0.0001201,38475.0,38472.0,0.1]
[1646611322133,0.014121,38474.0,38468.0,0.004]
[1646611322337,0.014121,38474.0,38460.0,0.21184821]
[1646611322338,0.02584,38473.0,38460.0,0.21184821]
[1646611322531,0.02584,38473.0,38459.0,0.5162]
[1646611322832,0.02584,38473.0,38458.0,0.21190821]
[1646611323032,0.22852025,38472.0,38460.0,0.17349887]
[1646611323232,0.065021,38469.0,38460.0,0.17349887]
[1646611323588,0.3,38468.0,38458.0,6e-05]
[1646611323784,0.130054,38466.0,38457.0,0.006]
[1646611323983,0.38672,38462.0,38457.0,0.006]
[1646611324183,0.014121,38459.0,38457.0,0.006]
[1646611324382,0.014121,38459.0,38453.0,0.11464665]
[1646611324383,0.0175264,38456.0,38453.0,0.11464665]
[1646611324584,0.01793213,38455.0,38453.0,0.11464665]
[1646611324782,0.01781813,38454.0,38453.0,0.11464665]
[1646611325084,0.06329956,38458.0,38453.0,0.11464665]
[1646611325085,0.05,38458.0,38453.0,0.11464665]
[1646611325284,0.180086,38459.0,38453.0,0.11464665]
[1646611326186,0.19552893,38459.0,38453.0,0.11464665]
[1646611326386,0.180086,38459.0,38454.0,0.38672]
[1646611327185,0.180086,38459.0,38453.0,0.11464665]
[1646611327428,0.01304901,38458.0,38453.0,0.11464665]
[1646611327930,0.06304901,38458.0,38453.0,0.11464665]
[1646611328128,0.06304901,38458.0,38454.0,0.38672]
[1646611328338,0.05,38458.0,38457.0,0.16219159]
[1646611328530,0.01299,38468.0,38463.0,0.37436883]
[1646611328729,0.01084667,38466.0,38463.0,0.37436883]
[1646611329129,0.01355293,38466.0,38463.0,0.37436883]
[1646611329729,0.38672,38465.0,38463.0,0.37436883]
[1646611329928,0.38672,38464.0,38463.0,0.37436883]
[1646611330331,0.50174,38464.0,38463.0,0.37436883]
[1646611331187,0.65174,38464.0,38463.0,0.37436883]
[1646611331383,0.95174,38464.0,38463.0,0.37436883]
[1646611331581,0.5,38462.0,38453.0,0.11464665]
[1646611331781,0.130076,38460.0,38453.0,0.11464665]
[1646611332182,0.05,38459.0,38453.0,0.11464665]
[1646611332583,0.05,38461.0,38454.0,0.38672]
[1646611332782,0.05,38461.0,38454.0,0.18527215]
[1646611333281,0.05,38461.0,38453.0,0.11464665]
[1646611333482,0.05,38461.0,38453.0,0.02142109]
[1646611333682,0.180076,38461.0,38453.0,0.02142109]
[1646611334083,0.33920532,38461.0,38453.0,0.02142109]
[1646611334583,0.05,38461.0,38453.0,0.02142109]
[1646611334826,0.20487999,38459.0,38453.0,0.02142109]
[1646611335028,0.01305422,38458.0,38453.0,0.02142109]
[1646611335828,0.01305422,38458.0,38454.0,0.38672]
[1646611336029,0.01305422,38458.0,38455.0,0.38672]
[1646611336231,0.01305422,38458.0,38454.0,0.58497327]
[1646611336432,0.01305422,38458.0,38457.0,0.20205337]
[1646611336629,0.01721982,38457.0,38454.0,0.19825327]
[1646611336929,0.115036,38461.0,38454.0,0.19825327]
[1646611336930,0.01591738,38456.0,38454.0,0.19825327]
[1646611337130,0.01698498,38455.0,38454.0,0.19825327]
[1646611337333,0.115036,38461.0,38454.0,0.19825327]
[1646611337529,0.115036,38461.0,38453.0,0.02142109]
[1646611338134,0.130078,38460.0,38453.0,0.02142109]
[1646611338585,0.54673783,38458.0,38453.0,0.02142109]
[1646611338782,0.38672,38457.0,38453.0,0.02142109]
[1646611339182,0.68672,38457.0,38453.0,0.02142109]
[1646611339384,0.68672,38457.0,38446.0,0.19807696]
[1646611339385,0.05811649,38449.0,38446.0,0.19807696]
[1646611339587,0.014121,38446.0,38439.0,0.26481026]
[1646611339784,0.15,38442.0,38437.0,0.26481026]
[1646611339993,0.73882,38441.0,38432.0,0.26481026]
[1646611340183,0.73882,38441.0,38430.0,0.44239316]
[1646611340184,0.014121,38439.0,38430.0,0.44239316]
[1646611340383,0.014121,38437.0,38430.0,0.38529316]
[1646611340785,0.014121,38437.0,38430.0,0.1204829]
[1646611341182,0.13861056,38438.0,38430.0,0.1204829]
[1646611341386,0.13861056,38438.0,38432.0,0.19064339]
[1646611341588,0.11301056,38438.0,38432.0,0.19064339]
[1646611341786,0.1021,38438.0,38433.0,0.65153026]
[1646611341983,0.1021,38438.0,38436.0,0.18134656]
[1646611342183,0.1021,38438.0,38436.0,0.4456269]
[1646611342426,0.1021,38438.0,38436.0,0.18134656]
[1646611342630,0.3150425,38446.0,38438.0,0.19718021]
[1646611342828,0.345216,38448.0,38430.0,0.1]
[1646611342829,0.0152335,38444.0,38430.0,0.1]
[1646611343027,0.0521,38443.0,38430.0,0.1]
[1646611343230,0.133138,38439.0,38431.0,0.3]
[1646611343431,0.14859025,38439.0,38430.0,0.4]
[1646611343628,0.133138,38439.0,38434.0,0.26952082]
[1646611343829,0.14619045,38439.0,38434.0,0.26952082]
[1646611344228,0.133138,38439.0,38434.0,0.26952082]
[1646611344428,0.130138,38439.0,38434.0,0.26952082]
[1646611344627,0.14235942,38439.0,38434.0,0.26952082]
[1646611345028,0.130138,38439.0,38434.0,0.26952082]
[1646611345429,0.00097115,38436.0,38433.0,0.19293842]
[1646611345729,0.38672,38438.0,38436.0,0.0019423]
[1646611345934,0.130172,38435.0,38427.0,0.3]